Workbook

Sheet Sheet1 (hidden)
A1: Rate : | B1: 4 | C1: 1.3 | D1: 0.01
B2: Day | C2: Infected | D2: Deaths
B3: 1 | C3: 1 | D3: =C3*$D$1 -> 0.0
B4: =B3+$B$1 -> 5 | C4: =C3*$C$1 -> 1 | D4: =C4*$D$1 -> 0.0
B5: =B4+$B$1 -> 9 | C5: =C4*$C$1 -> 2 | D5: 0.0
B6: 13 | C6: =C5*$C$1 -> 2 | D6: 0.0
B7: 17 | C7: 3 | D7: 0.0
B8: 21 | C8: 4 | D8: 0.0
B9: 25 | C9: 5 | D9: 0.0
B10: 29 | C10: 6 | D10: 0.1
B11: 33 | C11: 8 | D11: 0.1
B12: 37 | C12: 11 | D12: 0.1
B13: 41 | C13: 14 | D13: 0.1
B14: 45 | C14: 18 | D14: =C14*$D$1 -> 0
B15: 49 | C15: 23 | D15: 0
B16: 53 | C16: 30 | D16: 0
B17: 57 | C17: 39 | D17: 0
B18: 61 | C18: 51 | D18: 1
B19: 65 | C19: 67 | D19: 1
B20: 69 | C20: 87 | D20: 1
B21: 73 | C21: 112 | D21: 1
B22: 77 | C22: 146 | D22: 1
B23: 81 | C23: 190 | D23: 2
B24: 85 | C24: 247 | D24: 2
B25: 89 | C25: 321 | D25: 3
B26: 93 | C26: 418 | D26: 4
B27: 97 | C27: 543 | D27: 5
B28: 101 | C28: 706 | D28: 7
B29: 105 | C29: 917 | D29: 9
B30: 109 | C30: 1,193 | D30: 12
B31: 113 | C31: 1,550 | D31: 16
B32: 117 | C32: 2,015 | D32: 20
B33: 121 | C33: 2,620 | D33: 26
B34: 125 | C34: 3,406 | D34: 34
B35: 129 | C35: 4,428 | D35: 44
A36: World Population | B36: 133 | C36: 5,756 | D36: 58
B37: 137 | C37: 7,483 | D37: 75
B38: 141 | C38: 9,728 | D38: 97
B39: 145 | C39: 12,646 | D39: 126
B40: 149 | C40: 16,440 | D40: 164
B41: 153 | C41: 21,372 | D41: 214
B42: 157 | C42: 27,784 | D42: 278
B43: 161 | C43: 36,119 | D43: 361
B44: 165 | C44: 46,955 | D44: 470
B45: 169 | C45: 61,041 | D45: 610
B46: 173 | C46: 79,353 | D46: 794
B47: 177 | C47: 103,159 | D47: 1,032
B48: 181 | C48: 134,107 | D48: 1,341
B49: =B48+$B$1 -> 185 | C49: =C48*$C$1 -> 174,339 | D49: 1,743
B50: 189 | C50: 226,641 | D50: 2,266
B51: 193 | C51: 294,633 | D51: 2,946
B52: 197 | C52: 383,022 | D52: 3,830
B53: 201 | C53: 497,929 | D53: 4,979
B54: 205 | C54: 647,308 | D54: 6,473
B55: 209 | C55: 841,500 | D55: 8,415
B56: 213 | C56: 1,093,951 | D56: 10,940
B57: 217 | C57: 1,422,136 | D57: 14,221
B58: 221 | C58: 1,848,776 | D58: 18,488
B59: =B58+$B$1 -> 225 | C59: =C58*$C$1 -> 2,403,409 | D59: 24,034
B60: 229 | C60: 3,124,432 | D60: 31,244
B61: 233 | C61: 4,061,762 | D61: 40,618
B62: 237 | C62: 5,280,290 | D62: 52,803
B63: 241 | C63: 6,864,377 | D63: 68,644
B64: 245 | C64: 8,923,690 | D64: 89,237
B65: 249 | C65: 11,600,797 | D65: 116,008
B66: 253 | C66: 15,081,037 | D66: 150,810
B67: 257 | C67: 19,605,348 | D67: 196,053
B68: 261 | C68: 25,486,952 | D68: =C68*$D$1 -> 254,870
B69: 265 | C69: 33,133,038 | D69: 331,330
B70: 269 | C70: 43,072,949 | D70: 430,729
B71: 273 | C71: 55,994,833 | D71: 559,948
B72: 277 | C72: 72,793,283 | D72: 727,933
B73: 281 | C73: 94,631,268 | D73: 946,313
B74: 285 | C74: 123,020,649 | D74: 1,230,206
B75: 289 | C75: 159,926,844 | D75: 1,599,268
B76: 293 | C76: 207,904,897 | D76: 2,079,049
B77: 297 | C77: 270,276,366 | D77: 2,702,764
B78: 301 | C78: 351,359,276 | D78: 3,513,593
B79: 305 | C79: 456,767,058 | D79: 4,567,671
B80: 309 | C80: 593,797,176 | D80: 5,937,972
B81: 313 | C81: 771,936,328 | D81: 7,719,363
B82: 317 | C82: 1,003,517,227 | D82: 10,035,172
B83: 321 | C83: 1,304,572,395 | D83: 13,045,724
B84: 325 | C84: 1,695,944,114 | D84: 16,959,441
B85: 329 | C85: 2,204,727,348 | D85: 22,047,273
B86: 333 | C86: 2,866,145,552 | D86: 28,661,456
B87: 337 | C87: 3,725,989,218 | D87: 37,259,892
B88: 341 | C88: 4,843,785,983 | D88: 48,437,860
B89: 345 | C89: 6,296,921,778 | D89: 62,969,218
B90: =B89+$B$1 -> 349 | C90: 8,185,998,311 | D90: 81,859,983
B91: 353 | C91: 10,641,797,804 | D91: 106,417,978
B92: 357 | C92: 13,834,337,145 | D92: 138,343,371
B93: 361 | C93: 17,984,638,289 | D93: 179,846,383
B94: 365 | C94: 23,380,029,776 | D94: 233,800,298
B95: 369 | C95: 30,394,038,708 | D95: 303,940,387
B96: 373 | C96: 39,512,250,321 | D96: 395,122,503
B97: 377 | C97: 51,365,925,417 | D97: 513,659,254
B98: 381 | C98: 66,775,703,042 | D98: 667,757,030
B99: 385 | C99: 86,808,413,955 | D99: 868,084,140
B100: 389 | C100: 112,850,938,141 | D100: 1,128,509,381

Sheet Chart
U4: START UPDATE
U5: CLICK Here
U9: Enter Total Deaths below
U10: Then Click Red button Below
U11: 1789 | V11: 2020-03-31
U12: 2352 | V12: 2020-04-01
U13: 2921 | V13: 2020-04-02
V14: 2020-04-03
V15: 2020-04-04
V16: 2020-04-05
V17: 2020-04-06
V18: 2020-04-07
V19: 2020-04-08
V20: 2020-04-09
V21: 2020-04-10
V22: 2020-04-11
V23: 2020-04-12
V24: 2020-04-13
V25: 2020-04-14
V26: 2020-04-15
V27: 2020-04-16
U30: Click here To Update Chart

Sheet Data
A1: Rate : | B1: 4 | C1: 1.3 | D1: 0.01 | E1: 0
B2: Day | C2: Infected | D2: Deaths | E2: Deaths Now | F2: Deaths | I2: https://www.worldometers.info/coronavirus/country/uk/
A3: 2020-03-06 | B3: 1 | C3: 114 | D3: 1.0 | E3: =D3+$E$1 -> 1.0 | F3: 1.0
A4: 2020-03-07 | B4: 2 | C4: 160 | D4: 2.0 | E4: =D4+$E$1 -> 2.0 | F4: 2.0
A5: 2020-03-08 | B5: 3 | C5: 206 | D5: 2 | E5: 2.0 | F5: 2.0
A6: 2020-03-09 | B6: 4 | C6: 271 | D6: 3 | E6: 3.0 | F6: 3.0
A7: 2020-03-10 | B7: 5 | C7: 321 | D7: 5 | E7: 5.0 | F7: 5.0
A8: 2020-03-11 | B8: 6 | C8: 373 | D8: 6 | E8: 6.0 | F8: 6.0
A9: 2020-03-12 | B9: 7 | C9: 456 | D9: 8 | E9: 8.0 | F9: 8.0
A10: 2020-03-13 | B10: 8 | C10: 590 | D10: 8 | E10: 8.0 | F10: 8.0
A11: 2020-03-14 | B11: 9 | C11: 797 | D11: 10 | E11: 10.0 | F11: 10.0
A12: 2020-03-15 | B12: 10 | C12: 1061 | D12: 21 | E12: 21.0 | F12: 21.0
A13: 2020-03-16 | B13: 11 | C13: 1391 | D13: 35 | E13: 35.0 | F13: 35.0
A14: 2020-03-17 | B14: 12 | C14: 1543 | D14: 55 | E14: 55.0 | F14: 55.0
A15: 2020-03-18 | B15: 13 | C15: 1950 | D15: 71 | E15: 71.0 | F15: 71.0
A16: 2020-03-19 | B16: 14 | C16: 2626 | D16: 103 | E16: 103.0 | F16: 103.0
A17: 2020-03-20 | B17: 15 | C17: 3269 | D17: 144 | E17: 144.0 | F17: 144.0
A18: 2020-03-21 | B18: 16 | C18: 3983 | D18: 177 | E18: 177.0 | F18: 177.0
A19: 2020-03-22 | B19: 17 | C19: 5018 | D19: 233 | E19: 233.0 | F19: 233.0
A20: 2020-03-23 | B20: 18 | C20: 5683 | D20: 281 | E20: 281.0
A21: 2020-03-24 | B21: 19 | C21: 6650 | D21: 335 | E21: 335.0 | F21: 335.0
A22: 2020-03-25 | B22: 20 | C22: 8077 | D22: 422 | E22: 422.0 | F22: 422.0
A23: 2020-03-26 | B23: 21 | C23: 9529 | D23: 578 | E23: 578.0 | F23: 578.0
A24: 2020-03-27 | B24: 22 | C24: 11658 | D24: 759 | E24: 759.0 | F24: 759.0
A25: 2020-03-28 | B25: 23 | C25: 14543 | D25: 1019 | E25: 1019.0 | F25: 1019.0
A26: 2020-03-29 | B26: 24 | C26: 17089 | D26: 1228 | E26: 1228.0 | F26: 1228.0
A27: 2020-03-30 | B27: 25 | C27: 19522 | D27: 1415 | E27: 1408.0 | F27: 1415.0 | G27: =(E27-E22)/3 -> 329
A28: 2020-03-31 | B28: 26 | E28: 1789 | F28: =F27+G27 -> 1743.7 | G28: =G27 -> 329 | X28: =1408+381 -> 1789
A29: 2020-04-01 | B29: 27 | E29: 2352 | F29: =F28+G28 -> 2072.3 | G29: =G28 -> 329
A30: 2020-04-02 | B30: 28 | E30: 2921 | F30: 2401.0 | G30: 329
A31: 2020-04-03 | B31: 29 | F31: 2729.7 | G31: 329
A32: 2020-04-04 | B32: 30 | F32: 3058.3 | G32: 329
A33: 2020-04-05 | B33: 31 | F33: 3387.0 | G33: 329
A34: 2020-04-06 | B34: 32 | F34: 3715.7 | G34: 329
A35: 2020-04-07 | B35: 33 | F35: 4044.3 | G35: 329
A36: 2020-04-08 | B36: 34 | F36: 4373.0 | G36: 329
A37: 2020-04-09 | B37: 35 | F37: 4701.7 | G37: 329
A38: 2020-04-10 | B38: 36 | F38: 5030.3 | G38: 329
A39: 2020-04-11 | B39: 37 | F39: 5359.0 | G39: 329
A40: 2020-04-12 | B40: 38 | F40: 5687.7 | G40: 329
A41: 2020-04-13 | B41: 39 | F41: 6016.3 | G41: 329
A42: 2020-04-14 | B42: 40 | F42: 6345.0 | G42: 329
A43: 2020-04-15 | B43: 41 | G43: 329
A44: 2020-04-16 | B44: 42 | G44: 329
A45: 2020-04-17 | B45: 43
A46: 2020-04-18 | B46: 44
B47: 45
B48: 46
B49: 47
B50: 48
B51: 49
B52: 50
B53: 51
B54: 52
B55: 53
B56: 54
B57: 55
B58: 56
B59: 57
B60: 58
B61: 59
B62: 60
B63: 61
B64: 62
B65: 63
B66: 64
B67: 65
B68: 66
B69: 67
B70: 68
B71: 69
B72: 70
B73: 71
B74: 72
B75: 73
B76: 74
B77: 75
B78: 76
B79: 77
B80: 78
B81: 79
B82: 80
B83: 81
B84: 82
B85: 83
B86: 84
B87: 85
B88: 86
B89: 87
B90: 88
B91: 89
B92: 90
B93: 91
B94: 92
B95: 93
B96: 94
B97: 95
B98: 96
B99: 97
B100: 98
B101: 99
B102: 100
B103: 101
B104: 102
B105: 103
B106: 104
B107: 105
B108: 106
B109: 107
B110: 108
B111: 109
B112: 110
B113: 111
B114: 112
B115: 113
B116: 114
B117: 115
B118: 116
B119: 117
B120: 118
B121: 119
B122: 120
B123: 121
B124: 122
B125: 123
B126: 124
B127: 125
B128: 126
B129: 127
B130: 128
B131: 129
B132: 130
B133: 131
B134: 132
B135: 133
B136: 134
B137: 135
B138: 136
B139: 137
B140: 138
B141: 139
B142: 140
B143: 141
B144: 142
B145: 143
B146: 144
B147: 145
B148: 146
B149: 147
B150: 148
B151: 149
B152: 150
B153: 151
B154: 152
B155: 153
B156: 154
B157: 155
B158: 156
B159: 157
B160: 158
B161: 159
B162: 160
B163: 161
B164: 162
B165: 163
B166: 164
B167: 165
B168: 166
B169: 167
B170: 168
B171: 169
B172: 170
B173: 171
B174: 172
B175: 173
B176: 174
B177: 175
B178: 176
B179: 177
B180: 178
B181: 179
B182: 180
B183: 181
B184: 182
B185: 183
B186: 184
B187: 185
B188: 186
B189: 187
B190: 188
B191: 189
B192: 190
B193: 191
B194: 192
B195: 193
B196: 194
B197: 195
B198: 196
B199: 197
B200: 198
... 206 more rows
